[Event "Niedersachsen-ch A 2024"]
[Site "Verden Aller"]
[Date "2024.01.05"]
[Round "3.35"]
[White "Behn, Cord"]
[Black "Trunz, Tamila"]
[Result "*"]
[ECO "A29"]
[WhiteElo "1837"]
[BlackElo "1766"]
[Annotator "NA RC"]
[PlyCount "44"]
[EventDate "2024.01.01"]
[EventType "swiss"]
[EventCountry "GER"]
[SourceTitle "playchess.com"]
[Source "ChessBase"]
[SourceQuality "1"]
[TimeControl "40/5400+30:1800+30"]

1. c4 {[%emt 0:00:02]} e5 {[%emt 0:00:06]} 2. Nc3 {[%emt 0:00:06]} Nf6 {[%emt 0:00:19]} 3. g3 {[%emt 0:00:32]} d5 {[%emt 0:00:11]} 4. cxd5 {[%emt 0:00:20]} Nxd5 {[%emt 0:00:13]} 5. Bg2 {[%emt 0:00:08]} Nb6 {[%emt 0:00:05]} 6. Nf3 {[%emt 0:00:30]} Nc6 {[%emt 0:00:10]} 7. O-O {[%emt 1:32:22]} Be7 {[%emt 0:00:25]} 8. d3 {[%emt 0:00:56]} O-O {[%emt 0:00:25]} 9. a3 {[%emt 0:01:12]} Be6 {[%emt 0:03:23]} 10. b4 {[%emt 0:02:08]} f6 {[%emt 0:10:52]} 11. Bb2 {[%emt 0:04:13]} Qd7 {[%emt 0:06:17]} 12. Rc1 {[%emt 0:02:52]} Rad8 {[%emt 0:07:21]} 13. Ne4 {[%emt 0:08:00]} Nd4 {[%emt 0:09:26]} 14. Nxd4 {[%emt 0:10:04]} exd4 {[%emt 0:00:07]} 15. Nc5 {[%emt 0:00:35]} Bxc5 {[%emt 0:01:08]} 16. bxc5 {[%emt 0:00:11]} Nd5 {[%emt 0:06:19]} 17. c6 {[%emt 0:06:04]} bxc6 {[%emt 0:00:47]} 18. Qc2 {[%emt 0:00:10]} Ne7 {[%emt 0:06:37]} 19. Bxc6 {[%emt 0:05:09]} Qd6 {[%emt 0:00:16]} 20. Bg2 {[%emt 0:08:05]} c6 {[%emt 0:04:15]} 21. Qc5 {[%emt 0:03:06]} Qxc5 {[%emt 0:02:54]} 22. Rxc5 {[%emt 0:00:07]} Rd6 {[%emt 0:00:50]} *

[Event "Niedersachsen-ch A 2024"]
[Site "Verden Aller"]
[Date "2024.01.05"]
[Round "4.1"]
[White "Nielsen, Lars Aaes"]
[Black "Lichtmannecker, Daniel"]
[Result "0-1"]
[ECO "B18"]
[WhiteElo "2202"]
[BlackElo "2124"]
[Annotator "RC"]
[PlyCount "76"]
[EventDate "2024.01.01"]
[EventType "swiss"]
[EventCountry "GER"]
[SourceTitle "playchess.com"]
[Source "ChessBase"]
[SourceQuality "1"]
[TimeControl "40/5400+30:1800+30"]

1. e4 {[%emt 0:00:05]} c6 {[%emt 0:00:46]} 2. d4 {[%emt 0:00:23]} d5 {[%emt 0:00:06]} 3. Nc3 {[%emt 0:00:25]} dxe4 {[%emt 0:00:06]} 4. Nxe4 {[%emt 0:00:10]} Bf5 {[%emt 0:00:10]} 5. Ng3 {[%emt 0:00:16]} Bg6 {[%emt 0:00:06]} 6. Nf3 {[%emt 0:00:07]} Nd7 {[%emt 0:00:41]} 7. Bd3 {[%emt 0:01:21]} Ngf6 {[%emt 0:00:24]} 8. h4 {[%emt 0:03:59]} e6 {[%emt 0:02:21]} 9. h5 {[%emt 0:01:34]} Bxd3 {[%emt 0:03:50]} 10. Qxd3 {[%emt 0:00:02]} h6 {[%emt 0:01:55]} 11. Bd2 {[%emt 0:04:21]} Be7 {[%emt 0:01:04]} 12. O-O-O {[%emt 0:05:40]} O-O {[%emt 0:00:08]} 13. Rde1 {[%emt 0:03:30]} c5 {[%emt 0:04:00]} 14. Ne4 {[%emt 0:14:04]} Rc8 {[%emt 0:06:51]} 15. g4 {[%emt 0:03:38]} cxd4 {[%emt 0:07:59]} 16. Nxf6+ {[%emt 0:04:21]} Bxf6 {[%emt 0:01:46]} 17. g5 {[%emt 0:08:23]} hxg5 {[%emt 0:02:27]} 18. Reg1 {[%emt 0:01:43]} Nc5 {[%emt 0:02:24]} 19. Qf1 {[%emt 0:09:25]} Qd5 {[%emt 0:08:55]} 20. Nxg5 {[%emt 0:08:50]} Qxa2 {[%emt 0:01:54]} 21. Kd1 {[%emt 0:00:14]} Qb1+ {[%emt 0:02:01]} 22. Ke2 {[%emt 0:00:48]} d3+ {[%emt 0:05:42]} 23. Kf3 {[%emt 0:00:41]} Qxf1 {[%emt 0:00:33]} 24. Rxf1 {[%emt 0:00:06]} dxc2 {[%emt 0:00:36]} 25. h6 {[%emt 0:02:38]} Nb3 {[%emt 0:03:49]} 26. Be3 {[%emt 0:02:33]} c1=Q {[%emt 0:03:41]} 27. Rxc1 {[%emt 0:00:33]} Nxc1 {[%emt 0:00:27]} 28. hxg7 {[%emt 0:00:18]} Kxg7 {[%emt 0:02:11]} 29. Ne4 {[%emt 0:00:46]} Rg8 {[%emt 0:09:38]} 30. Bh6+ {[%emt 0:04:35]} Kg6 {[%emt 0:00:09]} 31. Bxc1 {[%emt 0:00:20]} Be7 {[%emt 0:03:29]} 32. Be3 {[%emt 0:05:05]} f5 {[%emt 0:02:01]} 33. Ng3 {[%emt 0:00:55]} Bc5 {[%emt 0:01:42]} 34. Bd2 {[%emt 0:00:58]} Bd4 {[%emt 0:01:24]} 35. Ne2 {[%emt 0:04:44]} Bxb2 {[%emt 0:01:14]} 36. Nf4+ {[%emt 0:00:36]} Kf7 {[%emt 0:00:17]} 37. Rb1 {[%emt 0:00:40]} Rc2 {[%emt 0:04:33]} 38. Be3 {[%emt 0:00:43]} b6 {[%emt 0:02:55]} 0-1

[Event "Niedersachsen-ch A 2024"]
[Site "Verden Aller"]
[Date "2024.01.05"]
[Round "4.2"]
[White "Jacobi, Felix-Hagen"]
[Black "Celik, Abdullah"]
[Result "1/2-1/2"]
[ECO "B21"]
[WhiteElo "2056"]
[BlackElo "2081"]
[Annotator "NA"]
[PlyCount "86"]
[EventDate "2024.01.01"]
[EventType "swiss"]
[EventCountry "GER"]
[SourceTitle "playchess.com"]
[Source "ChessBase"]
[SourceQuality "1"]
[TimeControl "40/5400+30:1800+30"]

1. e4 {[%emt 0:00:05]} c5 {[%emt 0:00:02]} 2. f4 {[%emt 0:00:41]} g6 {[%emt 0:00:05]} 3. Nf3 {[%emt 0:00:46]} Bg7 {[%emt 0:00:25]} 4. c3 {[%emt 0:02:29]} d5 {[%emt 0:00:07]} 5. Bb5+ {[%emt 0:00:19]} Nc6 {[%emt 0:00:03]} 6. d3 {[%emt 0:01:51]} dxe4 {[%emt 0:02:59]} 7. dxe4 {[%emt 0:13:52]} Qxd1+ {[%emt 0:01:39]} 8. Kxd1 {[%emt 0:00:07]} Nf6 {[%emt 0:04:30]} 9. e5 {[%emt 0:05:35]} Nd5 {[%emt 0:01:04]} 10. c4 {[%emt 0:04:42]} Ndb4 {[%emt 0:11:29]} 11. a3 {[%emt 0:06:31]} Nd3 {[%emt 0:00:03]} 12. Ke2 {[%emt 0:02:56]} Nxc1+ {[%emt 0:05:02]} 13. Rxc1 {[%emt 0:00:07]} O-O {[%emt 0:00:20]} 14. Nbd2 {[%emt 0:14:15]} Nd4+ {[%emt 0:19:59]} 15. Nxd4 {[%emt 0:03:18]} cxd4 {[%emt 0:00:04]} 16. c5 {[%emt 0:00:17]} g5 {[%emt 0:07:44]} 17. g3 {[%emt 0:04:39]} gxf4 {[%emt 0:04:20]} 18. gxf4 {[%emt 0:00:09]} Bf5 {[%emt 0:01:46]} 19. Bd3 {[%emt 0:05:52]} Bg4+ {[%emt 0:00:05]} 20. Nf3 {[%emt 0:00:04]} f6 {[%emt 0:02:35]} 21. Bc4+ {[%emt 0:01:23]} Kh8 {[%emt 0:00:05]} 22. e6 {[%emt 0:00:33]} Rfd8 {[%emt 0:03:34]} 23. Rg1 {[%emt 0:02:16]} f5 {[%emt 0:03:29]} 24. Bd3 {[%emt 0:08:46]} Rac8 {[%emt 0:05:08]} 25. b4 {[%emt 0:04:54]} Rc6 {[%emt 0:01:12]} 26. Kf2 {[%emt 0:01:33]} Bxf3 {[%emt 0:08:30]} 27. Kxf3 {[%emt 0:00:05]} Rxe6 {[%emt 0:01:07]} 28. Rae1 {[%emt 0:00:05]} Rxe1 {[%emt 0:07:06]} 29. Rxe1 {[%emt 0:00:07]} Bf6 {[%emt 0:00:31]} 30. Bxf5 {[%emt 0:00:32]} d3 {[%emt 0:00:53]} 31. Rd1 {[%emt 0:01:48]} d2 {[%emt 0:00:16]} 32. Be4 {[%emt 0:01:30]} Rd7 {[%emt 0:01:35]} 33. Ke2 {[%emt 0:00:38]} Bc3 {[%emt 0:00:04]} 34. b5 {[%emt 0:01:51]} Ba5 {[%emt 0:01:22]} 35. Rg1 {[%emt 0:04:36]} h6 {[%emt 0:04:08]} 36. Bc2 {[%emt 0:01:50]} Rd5 {[%emt 0:01:58]} 37. c6 {[%emt 0:01:41]} bxc6 {[%emt 0:00:04]} 38. bxc6 {[%emt 0:00:07]} Rc5 {[%emt 0:02:05]} 39. Be4 {[%emt 0:00:14]} Rc1 {[%emt 0:00:32]} 40. Rd1 {[%emt 0:00:12]} Rxd1 {[%emt 0:01:29]} 41. Kxd1 {[%emt 0:30:05]} Bc7 {[%emt 0:30:30]} 42. Kxd2 {[%emt 0:08:09]} Bxf4+ {[%emt 0:01:31]} 43. Kd3 Bxh2 {[%emt 0:00:30]} 1/2-1/2

[Event "Niedersachsen-ch A 2024"]
[Site "Verden Aller"]
[Date "2024.01.05"]
[Round "4.3"]
[White "Peters, Tom"]
[Black "Loecken, Siegfried"]
[Result "1-0"]
[ECO "B05"]
[WhiteElo "2102"]
[BlackElo "2014"]
[Annotator "NA RC"]
[PlyCount "63"]
[EventDate "2024.01.01"]
[EventType "swiss"]
[EventCountry "GER"]
[SourceTitle "playchess.com"]
[Source "ChessBase"]
[SourceQuality "1"]
[TimeControl "40/5400+30:1800+30"]

1. e4 {[%emt 0:00:04]} Nf6 {[%emt 0:00:10]} 2. e5 {[%emt 0:00:47]} Nd5 {[%emt 0:00:02]} 3. d4 {[%emt 0:00:09]} d6 {[%emt 0:00:02]} 4. Nf3 {[%emt 0:00:09]} Bg4 {[%emt 0:00:31]} 5. Be2 {[%emt 0:00:13]} e6 {[%emt 0:00:03]} 6. O-O {[%emt 0:00:55]} Be7 {[%emt 0:00:02]} 7. c4 {[%emt 0:01:00]} Nb6 {[%emt 0:00:02]} 8. Nc3 {[%emt 0:00:11]} O-O {[%emt 0:00:12]} 9. h3 {[%emt 0:01:15]} Bh5 {[%emt 0:00:03]} 10. exd6 {[%emt 0:10:36]} cxd6 {[%emt 0:02:36]} 11. d5 {[%emt 0:01:30]} e5 {[%emt 0:00:25]} 12. Nd2 {[%emt 0:14:19]} Bg6 {[%emt 0:03:37]} 13. b4 {[%emt 0:14:50]} N8d7 {[%emt 0:02:31]} 14. Nb3 {[%emt 0:05:48]} e4 {[%emt 0:04:35]} 15. Be3 {[%emt 0:02:56]} Ne5 {[%emt 0:01:54]} 16. Na5 {[%emt 0:02:26]} Qc8 {[%emt 0:03:04]} 17. c5 {[%emt 0:08:18]} dxc5 {[%emt 0:09:07]} 18. d6 {[%emt 0:00:02]} Bf6 {[%emt 0:00:49]} 19. bxc5 {[%emt 0:04:11]} Nf3+ {[%emt 0:09:13]} 20. Bxf3 {[%emt 0:00:07]} Bxc3 {[%emt 0:00:58]} 21. Rc1 {[%emt 0:01:01]} Bxa5 {[%emt 0:02:47]} 22. cxb6 {[%emt 0:00:07]} Qe6 {[%emt 0:01:06]} 23. Bg4 {[%emt 0:00:07]} f5 {[%emt 0:01:48]} 24. Be2 {[%emt 0:00:34]} Kh8 {[%emt 0:00:10]} 25. bxa7 {[%emt 0:15:03]} f4 {[%emt 0:05:51]} 26. Bg4 {[%emt 0:00:17]} Bf5 {[%emt 0:00:18]} 27. Bd4 {[%emt 0:02:05]} h5 {[%emt 0:08:17]} 28. Bxf5 {[%emt 0:03:20]} Rxf5 {[%emt 0:00:36]} 29. Qb3 {[%emt 0:00:36]} Qg6 {[%emt 0:01:36]} 30. Qxb7 {[%emt 0:00:50]} Rg5 {[%emt 0:00:53]} 31. Qxa8+ {[%emt 0:00:34]} Kh7 {[%emt 0:00:03]} 32. Rc8 {[%emt 0:01:59]} 1-0

[Event "Niedersachsen-ch A 2024"]
[Site "Verden Aller"]
[Date "2024.01.05"]
[Round "4.4"]
[White "Moeller, Tom"]
[Black "Hebbinghaus, Holger"]
[Result "0-1"]
[ECO "D00"]
[WhiteElo "1677"]
[BlackElo "2164"]
[Annotator "RC"]
[PlyCount "88"]
[EventDate "2024.01.01"]
[EventType "swiss"]
[EventCountry "GER"]
[SourceTitle "playchess.com"]
[Source "ChessBase"]
[SourceQuality "1"]
[TimeControl "40/5400+30:1800+30"]

1. d4 {[%emt 0:00:01]} d5 {[%emt 0:00:07]} 2. Nc3 {[%emt 0:00:05]} Nf6 {[%emt 0:00:07]} 3. Bf4 {[%emt 0:00:04]} a6 {[%emt 0:00:14]} 4. e3 {[%emt 0:00:25]} e6 {[%emt 0:00:07]} 5. Nf3 {[%emt 0:00:14]} Nbd7 {[%emt 0:00:06]} 6. Bd3 {[%emt 0:01:07]} c5 {[%emt 0:00:08]} 7. dxc5 {[%emt 0:01:59]} Nxc5 {[%emt 0:00:20]} 8. O-O {[%emt 0:01:03]} Be7 {[%emt 0:00:30]} 9. Re1 {[%emt 0:01:25]} O-O {[%emt 0:01:09]} 10. e4 {[%emt 0:02:01]} dxe4 {[%emt 0:06:01]} 11. Bxe4 {[%emt 0:01:03]} Ncxe4 {[%emt 0:04:57]} 12. Nxe4 {[%emt 0:00:05]} Nd5 {[%emt 0:00:28]} 13. Bd2 {[%emt 0:02:48]} Qc7 {[%emt 0:02:26]} 14. Nc3 {[%emt 0:06:42]} Nf6 {[%emt 0:07:05]} 15. Qe2 {[%emt 0:02:57]} b5 {[%emt 0:03:17]} 16. a3 {[%emt 0:05:59]} Bb7 {[%emt 0:01:42]} 17. Bg5 {[%emt 0:01:59]} Rac8 {[%emt 0:13:15]} 18. Rad1 {[%emt 0:01:52]} Rfd8 {[%emt 0:07:07]} 19. Ne5 {[%emt 0:12:31]} Rxd1 {[%emt 0:05:05]} 20. Rxd1 {[%emt 0:00:19]} Rd8 {[%emt 0:00:21]} 21. Re1 {[%emt 0:08:53]} h6 {[%emt 0:09:43]} 22. Bh4 {[%emt 0:03:18]} Rd4 {[%emt 0:07:12]} 23. Bg3 {[%emt 0:10:05]} Qc8 {[%emt 0:01:31]} 24. f3 {[%emt 0:04:31]} Rd8 {[%emt 0:02:50]} 25. Kh1 {[%emt 0:01:22]} Nh5 {[%emt 0:03:58]} 26. Ne4 {[%emt 0:12:47]} Qc7 {[%emt 0:04:02]} 27. Nd3 {[%emt 0:04:08]} Nxg3+ {[%emt 0:00:39]} 28. Nxg3 {[%emt 0:00:05]} Rc8 {[%emt 0:05:05]} 29. c3 {[%emt 0:01:05]} Rd8 {[%emt 0:00:50]} 30. Rd1 {[%emt 0:02:35]} Bd5 {[%emt 0:04:06]} 31. Nf1 {[%emt 0:02:22]} Bb3 {[%emt 0:01:15]} 32. Rd2 {[%emt 0:00:13]} Bc4 {[%emt 0:00:45]} 33. Qe4 {[%emt 0:03:38]} Bg5 {[%emt 0:02:19]} 34. f4 {[%emt 0:02:53]} Bxd3 {[%emt 0:00:52]} 35. Rxd3 {[%emt 0:00:33]} Rxd3 {[%emt 0:00:05]} 36. Qxd3 {[%emt 0:00:29]} Qxf4 {[%emt 0:00:17]} 37. h3 {[%emt 0:01:18]} Qf2 {[%emt 0:02:11]} 38. b3 {[%emt 0:01:55]} Bf4 {[%emt 0:02:25]} 39. Qd8+ {[%emt 0:00:57]} Kh7 {[%emt 0:00:04]} 40. Qd3+ {[%emt 0:00:07]} g6 {[%emt 0:00:26]} 41. a4 {[%emt 0:31:22]} bxa4 {[%emt 0:30:46]} 42. bxa4 {[%emt 0:00:06]} a5 {[%emt 0:00:07]} 43. c4 {[%emt 0:01:50]} e5 {[%emt 0:03:02]} 44. g3 {[%emt 0:00:00]} e4 {[%emt 0:00:00]} 0-1

[Event "Niedersachsen-ch A 2024"]
[Site "Verden Aller"]
[Date "2024.01.05"]
[Round "4.5"]
[White "Lau, Udo"]
[Black "Kiesel, Lucas"]
[Result "1/2-1/2"]
[ECO "B08"]
[WhiteElo "2071"]
[BlackElo "1987"]
[Annotator "NA RC"]
[PlyCount "83"]
[EventDate "2024.01.01"]
[EventType "swiss"]
[EventCountry "GER"]
[SourceTitle "playchess.com"]
[Source "ChessBase"]
[SourceQuality "1"]
[TimeControl "40/5400+30:1800+30"]

1. e4 {[%emt 0:00:03]} d6 {[%emt 0:03:21]} 2. Nf3 {[%emt 0:00:44]} Nf6 {[%emt 0:00:03]} 3. Nc3 {[%emt 0:00:43]} g6 {[%emt 0:00:02]} 4. d4 {[%emt 0:01:07]} Bg7 {[%emt 0:00:18]} 5. Be2 {[%emt 0:01:06]} c6 {[%emt 0:00:28]} 6. O-O {[%emt 0:00:29]} O-O {[%emt 0:05:44]} 7. Re1 {[%emt 0:02:28]} b5 {[%emt 0:02:39]} 8. a3 {[%emt 0:00:21]} Bg4 {[%emt 0:04:30]} 9. Be3 {[%emt 0:02:23]} Qc7 {[%emt 0:09:16]} 10. Qd2 {[%emt 0:02:33]} Nbd7 {[%emt 0:01:09]} 11. h3 {[%emt 0:03:32]} Bxf3 {[%emt 0:00:10]} 12. Bxf3 {[%emt 0:00:09]} a6 {[%emt 0:04:52]} 13. Bg5 {[%emt 0:03:41]} Rfd8 {[%emt 0:03:43]} 14. Rad1 {[%emt 0:00:55]} Rac8 {[%emt 0:00:49]} 15. Qf4 {[%emt 0:01:28]} e5 {[%emt 0:04:32]} 16. dxe5 {[%emt 0:00:25]} dxe5 {[%emt 0:00:03]} 17. Qh4 {[%emt 0:00:14]} Re8 {[%emt 0:02:22]} 18. Rd2 {[%emt 0:02:11]} Re6 {[%emt 0:20:03]} 19. Red1 {[%emt 0:04:24]} Nf8 {[%emt 0:02:28]} 20. Bh6 {[%emt 0:03:18]} Bxh6 {[%emt 0:03:25]} 21. Qxh6 {[%emt 0:00:16]} Ree8 {[%emt 0:00:35]} 22. Qg5 {[%emt 0:10:17]} Kg7 {[%emt 0:01:02]} 23. Rd6 {[%emt 0:02:52]} Re6 {[%emt 0:02:34]} 24. R6d3 {[%emt 0:04:24]} Ree8 {[%emt 0:01:10]} 25. Ne2 {[%emt 0:02:05]} Ne6 {[%emt 0:01:08]} 26. Qe3 {[%emt 0:01:54]} Red8 {[%emt 0:01:25]} 27. h4 {[%emt 0:01:42]} h5 {[%emt 0:00:09]} 28. g3 {[%emt 0:01:53]} Rxd3 {[%emt 0:08:37]} 29. Rxd3 {[%emt 0:00:50]} Rd8 {[%emt 0:00:32]} 30. Kf1 {[%emt 0:04:57]} Rxd3 {[%emt 0:03:53]} 31. Qxd3 {[%emt 0:01:19]} Qd7 {[%emt 0:00:39]} 32. Qxd7 {[%emt 0:00:44]} Nxd7 {[%emt 0:00:05]} 33. Ke1 {[%emt 0:02:06]} Kf6 {[%emt 0:01:26]} 34. Kd2 {[%emt 0:00:16]} Ke7 {[%emt 0:04:41]} 35. Bg2 {[%emt 0:00:14]} Kd6 {[%emt 0:00:44]} 36. f4 {[%emt 0:01:48]} c5 {[%emt 0:01:31]} 37. Bh3 {[%emt 0:02:37]} Nf6 {[%emt 0:02:56]} 38. Bxe6 {[%emt 0:02:17]} Kxe6 {[%emt 0:01:02]} 39. Ke3 {[%emt 0:01:31]} Ng4+ {[%emt 0:00:44]} 40. Kf3 {[%emt 0:00:20]} Nh2+ {[%emt 0:00:13]} 41. Kg2 {[%emt 0:30:08]} Ng4 {[%emt 0:30:02]} 42. Kf3 {[%emt 0:34:46]} 1/2-1/2

[Event "Niedersachsen-ch A 2024"]
[Site "Verden Aller"]
[Date "2024.01.05"]
[Round "4.6"]
[White "Schulz, Jens"]
[Black "Boerma, Daniel"]
[Result "1-0"]
[ECO "B07"]
[WhiteElo "2152"]
[BlackElo "1905"]
[Annotator "RC"]
[PlyCount "67"]
[EventDate "2024.01.01"]
[EventType "swiss"]
[EventCountry "GER"]
[SourceTitle "playchess.com"]
[Source "ChessBase"]
[SourceQuality "1"]
[TimeControl "40/5400+30:1800+30"]

1. e4 {[%emt 0:00:27]} d6 {[%emt 0:00:15]} 2. d4 {[%emt 0:01:57]} Nf6 {[%emt 0:00:14]} 3. Nc3 {[%emt 0:00:21]} Nbd7 {[%emt 0:00:17]} 4. g3 {[%emt 0:05:07]} e5 {[%emt 0:00:23]} 5. Nge2 {[%emt 0:00:30]} Be7 {[%emt 0:00:31]} 6. Bg2 {[%emt 0:00:04]} c6 {[%emt 0:00:27]} 7. a4 {[%emt 0:00:18]} O-O {[%emt 0:01:06]} 8. O-O {[%emt 0:00:04]} Ne8 {[%emt 0:02:00]} 9. Be3 {[%emt 0:04:20]} Bg5 {[%emt 0:02:16]} 10. f4 {[%emt 0:02:04]} exd4 {[%emt 0:01:03]} 11. Nxd4 {[%emt 0:00:49]} Bf6 {[%emt 0:00:21]} 12. a5 {[%emt 0:05:57]} Nc5 {[%emt 0:02:47]} 13. Qd2 {[%emt 0:05:44]} Qe7 {[%emt 0:01:20]} 14. Kh1 {[%emt 0:02:50]} Nc7 {[%emt 0:01:21]} 15. Bg1 {[%emt 0:01:26]} Bxd4 {[%emt 0:02:47]} 16. Qxd4 {[%emt 0:02:29]} N5e6 {[%emt 0:01:43]} 17. Qd2 {[%emt 0:01:56]} f5 {[%emt 0:00:27]} 18. Rae1 {[%emt 0:25:54]} fxe4 {[%emt 0:01:23]} 19. Nxe4 {[%emt 0:00:32]} d5 {[%emt 0:01:17]} 20. Nc5 {[%emt 0:00:30]} Qf7 {[%emt 0:00:40]} 21. f5 {[%emt 0:05:55]} Nxc5 {[%emt 0:00:22]} 22. Bxc5 {[%emt 0:00:05]} Re8 {[%emt 0:00:45]} 23. Rxe8+ {[%emt 0:05:11]} Nxe8 {[%emt 0:00:32]} 24. g4 {[%emt 0:01:03]} Nf6 {[%emt 0:02:10]} 25. g5 {[%emt 0:03:02]} Nd7 {[%emt 0:00:58]} 26. Bd4 {[%emt 0:07:43]} Nf8 {[%emt 0:01:17]} 27. Qd3 {[%emt 0:00:55]} a6 {[%emt 0:00:50]} 28. Bh3 {[%emt 0:01:03]} Bd7 {[%emt 0:01:12]} 29. g6 {[%emt 0:00:38]} hxg6 {[%emt 0:01:06]} 30. fxg6 {[%emt 0:00:18]} Qe7 {[%emt 0:00:32]} 31. Rf7 {[%emt 0:04:19]} Qe1+ {[%emt 0:00:24]} 32. Bf1 {[%emt 0:00:06]} Ne6 {[%emt 0:00:55]} 33. Bc3 {[%emt 0:00:10]} Qh4 {[%emt 1:13:19]} 34. Rxd7 {[%emt 0:00:38]} 1-0

[Event "Niedersachsen-ch A 2024"]
[Site "Verden Aller"]
[Date "2024.01.05"]
[Round "4.7"]
[White "Reins, Henning"]
[Black "Carlstedt, Jonathan"]
[Result "0-1"]
[ECO "B20"]
[WhiteElo "1950"]
[BlackElo "2447"]
[Annotator "RC"]
[PlyCount "48"]
[EventDate "2024.01.01"]
[EventType "swiss"]
[EventCountry "GER"]
[SourceTitle "playchess.com"]
[Source "ChessBase"]
[SourceQuality "1"]
[TimeControl "40/5400+30:1800+30"]

1. e4 {[%emt 0:00:03]} c5 {[%emt 0:00:15]} 2. b3 {[%emt 0:00:19]} Nf6 {[%emt 0:00:08]} 3. e5 {[%emt 0:01:22]} Nd5 {[%emt 0:00:12]} 4. Nc3 {[%emt 0:03:34]} Nxc3 {[%emt 0:01:52]} 5. dxc3 {[%emt 0:00:45]} Nc6 {[%emt 0:00:08]} 6. Nf3 {[%emt 0:01:34]} g6 {[%emt 0:00:59]} 7. Bf4 {[%emt 0:08:28]} Bg7 {[%emt 0:00:42]} 8. Bc4 {[%emt 0:04:01]} d6 {[%emt 0:03:12]} 9. Qe2 {[%emt 0:02:48]} O-O {[%emt 0:02:13]} 10. Rd1 {[%emt 0:04:11]} Bg4 {[%emt 0:01:27]} 11. e6 {[%emt 0:08:44]} Bxc3+ {[%emt 0:03:19]} 12. Kf1 {[%emt 0:00:22]} f5 {[%emt 0:01:22]} 13. Rxd6 {[%emt 0:11:16]} Qa5 {[%emt 0:07:29]} 14. a4 {[%emt 0:08:24]} Nd4 {[%emt 0:04:41]} 15. Qd3 {[%emt 0:03:06]} b5 {[%emt 0:06:14]} 16. Bd5 {[%emt 0:06:24]} c4 {[%emt 0:00:28]} 17. Qd1 {[%emt 0:03:56]} cxb3 {[%emt 0:02:00]} 18. cxb3 {[%emt 0:00:49]} bxa4 {[%emt 0:00:24]} 19. Bc4 {[%emt 0:04:00]} a3 {[%emt 0:07:26]} 20. Ra6 {[%emt 0:03:00]} Qxa6 {[%emt 0:00:20]} 21. Bxa6 {[%emt 0:00:35]} a2 {[%emt 0:00:06]} 22. Be5 {[%emt 0:05:18]} Bxf3 {[%emt 0:00:39]} 23. Bxd4 {[%emt 0:01:27]} Bxd4 {[%emt 0:00:41]} 24. Qxd4 {[%emt 0:00:46]} Rfd8 {[%emt 0:00:34]} 0-1

[Event "Niedersachsen-ch A 2024"]
[Site "Verden Aller"]
[Date "2024.01.05"]
[Round "4.8"]
[White "Stotyn, Fabian"]
[Black "Kieselbach, Jannik"]
[Result "1-0"]
[ECO "C45"]
[WhiteElo "2139"]
[BlackElo "1885"]
[Annotator "NA RC"]
[PlyCount "45"]
[EventDate "2024.01.01"]
[EventType "swiss"]
[EventCountry "GER"]
[SourceTitle "playchess.com"]
[Source "ChessBase"]
[SourceQuality "1"]
[TimeControl "40/5400+30:1800+30"]

1. e4 {[%emt 0:00:08]} e5 {[%emt 0:00:16]} 2. Nf3 {[%emt 0:00:08]} Nc6 {[%emt 0:00:42]} 3. d4 {[%emt 0:00:05]} exd4 {[%emt 0:00:08]} 4. Nxd4 {[%emt 0:00:05]} Nf6 {[%emt 0:00:34]} 5. Nxc6 {[%emt 0:00:23]} bxc6 {[%emt 0:00:10]} 6. Nd2 {[%emt 0:00:34]} g6 {[%emt 0:00:41]} 7. e5 {[%emt 0:04:31]} Qe7 {[%emt 0:01:01]} 8. Qe2 {[%emt 0:00:05]} Nd5 {[%emt 0:00:38]} 9. c4 {[%emt 0:00:36]} Ba6 {[%emt 0:00:47]} 10. Qe4 {[%emt 0:01:41]} Nb6 {[%emt 0:05:44]} 11. Bd3 {[%emt 0:12:06]} Bg7 {[%emt 0:04:17]} 12. O-O {[%emt 0:03:57]} O-O-O {[%emt 0:08:27]} 13. Nf3 {[%emt 0:05:02]} f5 {[%emt 0:17:12]} 14. Qe2 {[%emt 0:01:55]} h6 {[%emt 0:07:08]} 15. a4 {[%emt 0:03:11]} d5 {[%emt 0:13:56]} 16. cxd5 {[%emt 0:02:41]} Bxd3 {[%emt 0:02:00]} 17. Qxd3 {[%emt 0:01:01]} c5 {[%emt 0:15:53]} 18. Qa6+ {[%emt 0:03:22]} Kb8 {[%emt 0:00:21]} 19. Be3 {[%emt 0:03:24]} Bf8 {[%emt 0:10:58]} 20. Ra3 {[%emt 0:01:52]} Nxd5 {[%emt 0:07:25]} 21. Rb3+ {[%emt 0:00:23]} Nb6 {[%emt 0:00:19]} 22. a5 {[%emt 0:00:16]} c4 {[%emt 0:00:17]} 23. axb6 {[%emt 0:00:16]} 1-0